[Event "Pan-American Team-ch 2024"]
[Site "McAllen"]
[Date "2024.01.08"]
[Round "5.6"]
[White "Dhanush Bharadwaj"]
[Black "Hakobyan, Aram"]
[Result "0-1"]
[ECO "A13"]
[WhiteElo "2214"]
[BlackElo "2616"]
[Annotator "TA"]
[PlyCount "48"]
[EventDate "2024.01.05"]
[EventType "team-tourn"]
[EventCountry "USA"]
[TimeControl "5400+30"]

{[%evp 9,48,-25,-18,-26,-2,-35,-32,-38,-30,-71,-65,-85,-85,-89,-81,-91,-94,-125,-91,-125,-116,-118,-110,-133,-145,-170,-171,-301,-291,-565,-562,-702,-693,-691,-63,-682,-679,-29995,-29996,-29996,-29997]} 1. c4 Nf6 2. Nf3 e6 3. g3 d5 4. b3 d4 5. Bb2 Nc6 6. Bg2 {A13: English Opening: 1...e6.} e5 7. d3 Bc5 8. O-O {[%cal Ob3b4] Black is slightly better.} O-O {[#]} 9. Ng5 $146 ({Predecessor:} 9. Nbd2 h6 10. Ne1 a5 11. Nc2 Bg4 12. Ba3 Bxa3 13. Nxa3 Qd7 14. Nc2 Rfe8 15. Re1 {0-1 Shahade,G (2476)-Hammer,J (2645) San Francisco Mechanics Institute op rapid 2019 (3)}) 9... h6 10. Ne4 Nxe4 11. Bxe4 Bh3 12. Re1 f5 13. Bh1 {White is weak on the dark squares} Qg5 14. Nd2 Bb4 15. Bc1 Qf6 {[%cal Oe5e4] Black is much more active. The white rooks are badly placed.} 16. a3 Bc3 17. Rb1 Rae8 {[%cal Oe5e4]} 18. Bb2 (18. Bd5+ {is a better defense.} Kh8 19. Bg2 Bxg2 20. Kxg2) 18... e4 $19 19. dxe4 $2 {[#]} (19. Bg2 {might work better.} Bxg2 20. Kxg2) 19... fxe4 (19... Bxd2 20. Qxd2 fxe4 21. f3 $17 (21. e3 $2 Ne5 $19)) 20. Nxe4 Rxe4 21. Bxe4 {[%cal Of2f3]} Qxf2+ $40 {[%mdl 128] Black has some attack.} 22. Kh1 Ne5 {( -> ...Ng4)} (22... Qxe1+ 23. Qxe1 Bxe1 24. Rxe1 $14) 23. e3 Rf3 {[%csl Gh3][%cal Rf2g2]} (23... Bxb2 $2 {loses.} 24. Re2 (24. Bxb7 Rf3 25. Bd5+ Kh8 26. Rg1 Ng4 {[%mdl 64] Double Attack} 27. Rxb2 Qxb2) 24... Ng4 25. Rexb2 Qxe3 26. Qd3 (26. Bxb7 $2 Nf2+ 27. Rxf2 Rxf2 $19) (26. Bd5+ $2 Kh7 $19) 26... Qxd3 27. Bxd3 Nf2+ 28. Rxf2 Rxf2 29. Re1 $17) 24. Rg1 {[%emt 1:29:41] [#]} Ng4 $1 {[%emt 0:39:42] White got outplayed after the opening. An entertaining game by Hakobyan.   Weighted Error Value: White=0.75/Black=0.03 (flawless)} 0-1

[Event "Pan-American Team-ch 2024"]
[Site "McAllen"]
[Date "2024.01.08"]
[Round "5.7"]
[White "Quesada Perez, Yasser"]
[Black "Andersen, Gunnar"]
[Result "1-0"]
[ECO "B30"]
[WhiteElo "2578"]
[BlackElo "2157"]
[Annotator "RC"]
[PlyCount "91"]
[EventDate "2024.01.05"]
[EventType "team-tourn"]
[EventCountry "USA"]
[TimeControl "5400+30"]

1. e4 c5 2. Nf3 Nc6 3. Bb5 e6 4. Bxc6 bxc6 5. b3 d6 6. e5 d5 7. d3 Ne7 8. O-O Ng6 9. Nc3 Be7 10. Na4 O-O 11. Ba3 f6 12. Bb2 Qc7 13. exf6 Bxf6 14. c3 e5 15. Ne1 Be7 16. Ba3 Nf4 17. f3 Ne6 18. Nc2 Bd6 19. Kh1 Qf7 20. d4 Ba6 21. dxe5 Bxe5 22. Rf2 Bd6 23. Nd4 Qh5 24. f4 Qh6 25. Nxe6 Qxe6 26. Nxc5 Qh6 27. g3 Bc8 28. Qd2 Bg4 29. Qb2 g5 30. Nd3 Bxa3 31. Qxa3 Bf5 32. Nc5 gxf4 33. gxf4 Qd6 34. Qb4 Rf6 35. Rg1+ Bg6 36. Qd4 Raf8 37. Rg4 R8f7 38. b4 Qe7 39. Kg2 Rg7 40. Rg3 Bf5 41. Rff3 Rfg6 42. Qe5 Qf8 43. Re3 h5 44. Rxg6 Bxg6 45. Rg3 Kh7 {[%emt 1:32:10]} 46. Ne6 {[%emt 1:43:57]} 1-0

[Event "Pan-American Team-ch 2024"]
[Site "McAllen"]
[Date "2024.01.08"]
[Round "5.8"]
[White "Tarantin, Joseph"]
[Black "Harsha Bharathakoti"]
[Result "0-1"]
[ECO "B22"]
[WhiteElo "1717"]
[BlackElo "2565"]
[Annotator "RC"]
[PlyCount "48"]
[EventDate "2024.01.05"]
[EventType "team-tourn"]
[EventCountry "USA"]
[TimeControl "5400+30"]

1. e4 c5 2. d4 cxd4 3. c3 Nf6 4. e5 Nd5 5. Qxd4 e6 6. Nf3 Nc6 7. Qe4 f5 8. Qe2 b5 9. g3 Qc7 10. Nbd2 a5 11. Bg2 Be7 12. O-O O-O 13. Rd1 Ba6 14. Nf1 a4 15. Rxd5 exd5 16. Qd1 Kh8 17. Qxd5 Bb7 18. Bf4 Nd8 19. Qd2 Ne6 20. Ne3 g5 21. Nxg5 Bxg5 22. Bxg5 Nxg5 23. Nd5 Qxe5 24. Re1 {[%emt 0:50:01]} Ne4 {[%emt 1:05:48]} 0-1

[Event "Pan-American Team-ch 2024"]
[Site "McAllen"]
[Date "2024.01.08"]
[Round "5.9"]
[White "Antova, Gabriela"]
[Black "Sorokin, Aleksey"]
[Result "0-1"]
[ECO "E16"]
[WhiteElo "2229"]
[BlackElo "2555"]
[Annotator "ChessBase"]
[PlyCount "98"]
[EventDate "2024.01.05"]
[EventType "team-tourn"]
[EventCountry "USA"]
[TimeControl "5400+30"]

1. d4 Nf6 2. c4 e6 3. Nf3 d5 4. g3 Bb4+ 5. Nbd2 O-O 6. Bg2 b6 7. cxd5 exd5 8. O-O Re8 9. Ne5 Bb7 10. a3 Bd6 11. Ndc4 Bf8 12. b4 Ne4 13. Ne3 Nd7 14. Bb2 a5 15. b5 a4 16. Qd3 Ra5 17. Nc6 Bxc6 18. bxc6 Ndf6 19. f3 Nd6 20. Bc3 Ra8 21. Nc2 Re6 22. Bh3 Re8 23. Rfe1 b5 24. Kh1 Rb8 25. Nb4 Rb6 26. Bg2 Nc4 27. e4 Bxb4 28. Bxb4 dxe4 29. fxe4 Rxc6 30. Ra2 Rce6 31. Rae2 h5 32. Bc5 Nd7 33. Bb4 c5 34. dxc5 Qc7 35. Bh3 Nde5 36. Qc3 Rf6 37. Rf1 Qc6 38. Rxf6 Qxf6 39. Re1 Rd8 40. Rf1 Qc6 41. Bg2 Rd3 42. Qa1 h4 43. gxh4 Qc7 44. h3 Ne3 45. Rg1 Nxg2 46. Rxg2 Rxh3+ 47. Kg1 Rxh4 48. Qf1 Qd7 49. Qf5 {[%emt 1:54:58]} Qd4+ {[%emt 1:27:11]} 0-1

[Event "Pan-American Team-ch 2024"]
[Site "McAllen"]
[Date "2024.01.09"]
[Round "6.2"]
[White "Antipov, Mikhail Al."]
[Black "Dudin, Gleb"]
[Result "1/2-1/2"]
[WhiteElo "2604"]
[BlackElo "2533"]
[Annotator "TA"]
[PlyCount "30"]
[EventDate "2024.01.05"]
[EventType "team-tourn"]
[EventCountry "USA"]
[TimeControl "5400+30"]

{[%evp 9,17,29,39,13,8,6,29,16,28,29]} 1. e4 e5 2. Nf3 Nc6 3. Bc4 Nf6 4. d3 Be7 5. a4 O-O 6. Nc3 {C55: Two Knights: 4 d3, 4 d4 exd4 5 e5 and Max Lange Attack.} d6 7. a5 a6 8. O-O h6 {[%emt 0:10:13]} 9. Re1 {[%emt 0:11:00] [#] An uneventful encounter.   Weighted Error Value: White=0.09 (flawless) /Black=0.08 (flawless)} {Predecessor:} Re8 $146 10. Nd5 Nxd5 11. Bxd5 Nxa5 12. Rxa5 c6 13. Bxc6 bxc6 14. Bd2 Rb8 15. b4 Bf8 {½-½ Oparin,G (2681)-Van Foreest,J (2707) EU-Cup 38th Durres 2023 (5.4)} 1/2-1/2

[Event "Pan-American Team-ch 2024"]
[Site "McAllen"]
[Date "2024.01.08"]
[Round "6.3"]
[White "Beradze, Irakli"]
[Black "Raja Harshit"]
[Result "1/2-1/2"]
[ECO "D46"]
[WhiteElo "2507"]
[BlackElo "2508"]
[Annotator "RC"]
[PlyCount "20"]
[EventDate "2024.01.05"]
[EventType "team-tourn"]
[EventCountry "USA"]
[TimeControl "5400+30"]

1. Nf3 d5 2. d4 Nf6 3. c4 e6 4. Nc3 c6 5. e3 Nbd7 6. Qc2 Bd6 7. Bd3 O-O 8. O-O dxc4 9. Bxc4 b5 10. Bd3 {[%emt 0:06:57]} Bb7 {[%emt 0:02:27]} 1/2-1/2

[Event "Pan-American Team-ch 2024"]
[Site "McAllen"]
[Date "2024.01.08"]
[Round "6.5"]
[White "Sorokin, Aleksey"]
[Black "Gledura, Benjamin"]
[Result "1-0"]
[ECO "D35"]
[WhiteElo "2555"]
[BlackElo "2633"]
[Annotator "TA"]
[PlyCount "91"]
[EventDate "2024.01.05"]
[EventType "team-tourn"]
[EventCountry "USA"]
[TimeControl "5400+30"]

{[%evp 9,91,17,38,27,34,27,29,21,17,36,6,16,32,0,0,0,0,0,-9,-16,48,22,45,3,74,79,77,48,102,114,110,113,169,105,119,114,174,82,76,72,79,89,75,85,91,66,68,63,64,60,76,89,91,58,135,114,143,162,150,147,143,47,47,34,48,8,90,64,56,0,29,42,58,71,101,95,543,529,537,534,533,523,504,503]} 1. d4 Nf6 2. c4 e6 3. Nc3 d5 4. cxd5 exd5 5. Bg5 Be6 6. e3 {D35: Queen's Gambit Declined: Exchange Variation.} Nbd7 7. Bd3 c6 8. Nge2 {White has an edge.} h6 {[%cal Bh7h6,Bh6h5,Bh5h4][%mdl 32]} 9. Bf4 g5 10. Bg3 Nh5 11. Qc2 Nxg3 12. Nxg3 h5 13. e4 Nb6 14. e5 {[#]} Rc8 $146 (14... h4 $11 15. Nf5 Qd7) ({Predecessor:} 14... Qc7 15. a4 a5 16. Nge2 O-O-O 17. O-O Kb8 18. f4 f6 19. Bf5 Bg8 20. b3 gxf4 21. Nxf4 fxe5 {0-1 Bonsack,L (2372)-Baranowski,T (2375) ROM 100/B email 2018}) 15. O-O $14 (15. Nf5 {is more complex.} Kd7 16. a4 a5 17. O-O) 15... h4 (15... Kd7 {is interesting.} 16. Nf5 Rc7 17. a4 a5) 16. Nge2 (16. Nf5 {looks sharper.} Kd7 17. a4 a5 18. b3) 16... Bh6 (16... Kd7 $11 {remains equal.}) 17. f4 gxf4 18. Nxf4 Bxf4 (18... Qe7 $1 $14) 19. Rxf4 $16 Qg5 {Prevents Bf5.} 20. Raf1 Kd7 (20... Kd8 $16 {keeps fighting.}) 21. a4 ({White should try} 21. Na4 $18) 21... a5 22. R1f2 (22. Nd1 {feels hotter.} Kc7 23. Qc5 Nd7 24. Qd6+) 22... Rcg8 {[#]} (22... Kd8 $16 {was necessary.} 23. Qb3 Kc7) 23. Nd1 ({But not} 23. Qb3 $6 Qd8 $16) (23. Nb5 $1 $18 {[%cal Rb5d6] aiming for Nd6.} Nc8 24. Qc3) 23... Qe7 24. Qd2 Qb4 25. Qxb4 axb4 26. b3 Nc8 27. Nb2 {[%cal Bd1b2,Bb2d3,Bd3c5,Bc5a6][%mdl 32]} Ne7 28. Bc2 b6 29. Nd3 Rc8 30. a5 {[%mdl 64] Deflection} bxa5 31. Nc5+ Ke8 (31... Kc7 $14) 32. Bd3 Rb8 33. Ra2 Ra8 {[#]} 34. Na6 $1 {White has more active pieces. The black rooks are badly placed.} Ra7 {Dodges Nc7+} 35. Rxa5 ({White should play} 35. Nxb4 $1 $16 h3 36. g3) 35... Bc8 $1 $14 36. Ra4 {Hoping for Nc5.} Bxa6 37. Bxa6 {[%cal Oa6b7]} Rh6 (37... Kd7 $11) 38. Rf1 Rg6 39. Rf4 {Inhibits Rg4.} (39. Be2 $1 $14 Rxa4 40. bxa4) 39... Rg5 40. Kf2 $1 Ng6 41. Rf6 Rc7 42. Rxb4 {Black must now prevent Rb8+.} c5 $2 {[%mdl 8192] Loses the game.} (42... Kf8 $16 {is a better chance.}) 43. Rb8+ $18 {White is clearly winning.} Ke7 44. Bb5 {[%csl Gb5][%cal Rb8e8]} Nxe5 45. dxe5 Rxe5 {[%emt 1:46:00]} 46. Rh6 {[%emt 1:53:30] Weighted Error Value: White=0.15 (very precise) /Black=0.32} 1-0

[Event "Pan-American Team-ch 2024"]
[Site "McAllen"]
[Date "2024.01.08"]
[Round "6.6"]
[White "Hakobyan, Aram"]
[Black "Khanin, Semen"]
[Result "1/2-1/2"]
[ECO "E56"]
[WhiteElo "2616"]
[BlackElo "2558"]
[Annotator "TA"]
[PlyCount "128"]
[EventDate "2024.01.05"]
[EventType "team-tourn"]
[EventCountry "USA"]
[TimeControl "5400+30"]

{[%evp 19,128,37,40,42,46,53,46,43,88,78,101,84,106,91,192,187,277,104,101,93,102,97,89,98,90,108,128,66,65,78,84,84,84,81,93,88,95,87,85,77,74,69,80,78,81,71,89,80,101,106,95,96,108,78,78,82,91,72,80,72,80,79,81,87,99,68,68,0,85,0,70,65,65,67,77,70,73,66,69,71,69,70,84,86,87,56,55,61,45,49,68,56,67,20,39,0,16,15,17,0,0,0,15,6,6,7,8,4,8,4,6]} 1. d4 Nf6 2. c4 e6 3. Nf3 d5 4. Nc3 Be7 5. e3 O-O 6. cxd5 exd5 7. Bd3 c5 8. dxc5 Bxc5 9. O-O Nc6 10. h3 a6 $1 {[%mdl 4] is now more promising than 10...Qe7.} 11. b3 {E56: Nimzo-Indian: Rubinstein: Main Line: 7...Nc6.} Ba7 12. Bb2 Re8 13. Ne2 {White is slightly better.} Qd6 14. Rc1 {[%cal Ba1c1,Bc1c4,Bc4h4][%mdl 32]} Bd7 {[#]} 15. Rc4 $146 {[%mdl 512]} ({Predecessor:} 15. Ned4 Rad8 16. Nf5 Bxf5 17. Bxf5 g6 18. Bb1 d4 19. Nxd4 Nxd4 20. Bxd4 Bxd4 21. exd4 Qxd4 {0-1 Madaminov,M (2484)-Xu,X (2608) Abu Dhabi op 29th 2023 (3)}) 15... Bb8 16. Rh4 Ne4 (16... Ne5 $16 {was worth a try.} 17. Nxe5 Rxe5) 17. Ng3 $1 $18 {[%cal Rg3e4]} f5 (17... h6 $142) 18. Bxe4 $2 (18. Rxh7 $1 $18 Kxh7 19. Bxe4) 18... dxe4 $16 {[#]} 19. Rxh7 $3 {[%mdl 576] Decoy} Re7 (19... Kxh7 $2 20. Ng5+ Kg8 21. Qh5 $18) 20. Ng5 {Qh5 would kill now.} Qxd1 21. Rxd1 Bxg3 22. fxg3 {Hoping for Rd6.} Be8 23. Rd6 {White is much more active.} (23. Rf1 $16) 23... Ne5 $1 $14 24. Bxe5 Rxe5 25. Rh4 Rc8 {[#]} 26. Rf4 $1 Rc3 27. g4 fxg4 28. Rxg4 ({And not} 28. Nxe4 Rxe3 29. Rd4 Bc6 30. Rd8+ Kh7 $17) 28... Rxe3 29. Kf2 {[%mdl 64] Prevents Re1. Deflection} Rd3 30. Nxe4 Rxd6 31. Nxd6 $16 {[%mdl 4096] Endgame KRB-KRN} Bc6 32. Nc4 {Against Ra5} Rf5+ 33. Ke2 Bb5 34. h4 Kh7 35. Rd4 Re5+ 36. Kf2 Rf5+ 37. Ke1 Bc6 38. Ne3 Ra5 39. Rd2 Rh5 {[#]} 40. g3 $1 Re5 41. Kf2 Re6 42. Ng2 Re5 43. Ne3 Re6 $1 44. Ng2 Re5 $1 45. Nf4 g5 46. Re2 Rf5 47. hxg5 Rxg5 48. Re7+ Kh6 49. Re6+ Kh7 50. Nd3 Rf5+ 51. Ke2 Rg5 52. Nb4 Bh1 53. Kf2 Rf5+ 54. Kg1 Bf3 55. Nd3 Bc6 56. Nf4 (56. Ne5 $14 Bd5 57. Re7+ Kg8 58. g4) 56... Rc5 $11 57. Kf2 Rc2+ {The position is equal.} 58. Re2 Rc3 59. Re3 Rc2+ 60. Re2 Rc3 61. Ne6 Rf3+ 62. Ke1 {Ng5+ would be deadly.} Rxg3 63. Nd4 Bg2 64. Kf2 {[%emt 1:58:02]} Rg4 {[%emt 2:01:07] Blacks defense is rewarded with a draw. An exciting game.   Weighted Error Value: White=0.12 (very precise) /Black=0.10 (very precise)} 1/2-1/2

[Event "Pan-American Team-ch 2024"]
[Site "McAllen"]
[Date "2024.01.08"]
[Round "6.7"]
[White "Matviishen, Viktor"]
[Black "Quesada Perez, Yasser"]
[Result "1/2-1/2"]
[ECO "D33"]
[WhiteElo "2555"]
[BlackElo "2578"]
[Annotator "ChessBase"]
[PlyCount "64"]
[EventDate "2024.01.05"]
[EventType "team-tourn"]
[EventCountry "USA"]
[TimeControl "5400+30"]

1. d4 d5 2. c4 e6 3. Nc3 c5 4. cxd5 exd5 5. Nf3 Nc6 6. g3 Nf6 7. Bg2 cxd4 8. Nxd4 Bc5 9. Nb3 Bb6 10. O-O d4 11. Na4 O-O 12. Bg5 h6 13. Bxf6 Qxf6 14. Nxb6 axb6 15. Bxc6 bxc6 16. Qxd4 Rd8 17. Qxb6 Ba6 18. Rfe1 Qxb2 19. Qxc6 Rdc8 20. Qe4 Re8 21. Qd4 Rxe2 22. Qxb2 Rxb2 23. Reb1 Rxb1+ 24. Rxb1 Bc4 25. Rb2 g5 26. f3 Kg7 27. Kf2 Kf6 28. Ke3 Ke5 29. Rc2 Bd5 30. f4+ gxf4+ 31. gxf4+ Kf6 32. Rd2 {[%emt 1:39:11]} Be6 {[%emt 0:39:31]} 1/2-1/2

[Event "Pan-American Team-ch 2024"]
[Site "McAllen"]
[Date "2024.01.08"]
[Round "6.8"]
[White "Harsha Bharathakoti"]
[Black "Risteski, Emil"]
[Result "1-0"]
[ECO "D37"]
[WhiteElo "2565"]
[BlackElo "2375"]
[Annotator "ChessBase"]
[PlyCount "139"]
[EventDate "2024.01.05"]
[EventType "team-tourn"]
[EventCountry "USA"]
[TimeControl "5400+30"]

1. d4 d5 2. c4 e6 3. Nc3 h6 4. Nf3 Nf6 5. a3 a6 6. cxd5 exd5 7. Bf4 Bd6 8. Be5 c6 9. e3 Qe7 10. Bxd6 Qxd6 11. Qb3 Nbd7 12. Be2 O-O 13. O-O Re8 14. Rac1 g6 15. Rfe1 Kg7 16. Bd3 c5 17. dxc5 Nxc5 18. Qc2 Nce4 19. h3 Ng5 20. Be2 Bf5 21. Qd2 Rad8 22. Red1 Nge4 23. Nxe4 Nxe4 24. Qd4+ Nf6 25. b4 Rc8 26. Qa7 Rxc1 27. Rxc1 Rc8 28. Rc5 Ne4 29. Rxc8 Bxc8 30. Bd3 Nf6 31. Qd4 Qc7 32. Qb2 Qd6 33. Qc3 Bd7 34. Nd4 Kf8 35. Bc2 Ke7 36. a4 Kd8 37. a5 Ke7 38. Bd3 h5 39. Nb3 Bc6 40. Nd4 Bd7 41. f4 Be8 42. Kf2 Bd7 43. Ke2 Be8 44. Kd2 Bd7 45. Kc1 Be8 46. Kb2 Bd7 47. Kb3 Kd8 48. Kb2 Ke7 49. Nb3 Ba4 50. Nc5 Bc6 51. Qd4 Nd7 52. Kc3 Nf6 53. Qe5+ Qxe5+ 54. fxe5 Ne8 55. h4 Nc7 56. Kd4 Ne6+ 57. Nxe6 Kxe6 58. Be2 Kf5 59. Bf3 Ke6 60. g4 hxg4 61. Bxg4+ Ke7 62. Bf3 Ke6 63. Bg2 Ke7 64. Bxd5 Bxd5 65. Kxd5 Kd7 66. e6+ fxe6+ 67. Ke5 Ke7 68. e4 Kf7 69. Kd6 Kf6 {[%emt 2:00:33]} 70. Kc7 {[%emt 2:03:08]} 1-0

[Event "Pan-American Team-ch 2024"]
[Site "McAllen"]
[Date "2024.01.08"]
[Round "6.9"]
[White "Liang, Awonder"]
[Black "Koustav Chatterjee"]
[Result "1/2-1/2"]
[ECO "C85"]
[WhiteElo "2640"]
[BlackElo "2546"]
[Annotator "TA"]
[PlyCount "158"]
[EventDate "2024.01.05"]
[EventType "team-tourn"]
[EventCountry "USA"]
[TimeControl "5400+30"]

{[%evp 13,158,7,17,8,8,8,5,8,11,0,0,0,21,0,18,9,6,0,11,0,12,10,12,13,20,-20,10,0,37,25,35,40,35,31,61,16,12,16,11,14,10,25,25,22,25,0,0,-6,0,0,0,0,0,-72,-72,-72,-81,-74,-64,-139,0,-113,-100,-90,0,0,0,0,0,0,0,0,161,168,166,4,3,4,3,-45,-48,-57,0,0,0,0,0,0,0,0,0,0,0,0,0,0,0,0,0,-21,0,0,0,0,0,0,0,-8,0,0,0,0,0,0,0,0,0,0,0,0,0,0,0,0,0,0,0,0,0,0,7,0,0,0,0,0,0,0,0,-8,0,0,0,-8,0,0,0]} 1. e4 e5 2. Nf3 Nc6 3. Bb5 a6 4. Ba4 Nf6 5. O-O Be7 6. Bxc6 dxc6 7. Re1 Nd7 8. d4 {C85: Closed Ruy Lopez: Deferred Exchange Variation.} exd4 9. Qxd4 O-O 10. Bf4 Nc5 (10... g5 {seems wilder.} 11. Bg3 g4 12. Nfd2 h5) 11. Qe3 (11. Qc3 {is more complex.} Na4 12. Qe3 Bc5 13. Qb3) 11... Ne6 12. Bg3 {[#]} Bd7 $146 ({Predecessor:} 12... c5 13. Nc3 Nd4 14. Rad1 Bg4 15. Ne2 Bxf3 16. gxf3 Nxe2+ 17. Qxe2 Qc8 18. Qc4 b5 {1-0 Sanal,V (2595)-Chigaev,M (2621) Wch Blitz Samarkand 2023 (18)}) 13. Nc3 Qe8 14. Rad1 Rd8 15. Ne5 Bc5 16. Qc1 Bc8 17. Nd3 {next Nxc5 is good for White.} Ba7 18. Kh1 f6 19. f4 Nc5 20. f5 Nxd3 21. cxd3 Qf7 22. a3 Rd7 23. Ne2 Rfd8 24. Nf4 {White is more active.} Re7 25. Qc2 g6 26. fxg6 hxg6 27. Rf1 g5 28. Ne2 f5 29. exf5 Bxf5 30. Qd2 Qg6 {[%cal Rd8d3]} (30... Rxd3 $2 31. Qxg5+ Bg6 32. Nf4 Rxd1 33. Rxd1 $18) 31. d4 {[%cal Og3c7]} (31. Ng1 {feels hotter.} Bb6 32. Qb4 Re3 33. Nf3) 31... c5 32. d5 c4 33. Rde1 {White is weak on the light squares} (33. d6 $11 {keeps the balance.} Rf7 34. Nd4 cxd6 35. Nxf5 Rxf5 36. Qe2) 33... Rde8 $1 $17 34. d6 cxd6 35. Qd5+ Qf7 (35... Be6 $5 {[%cal Re6d5]} 36. Qxd6 Bf7 $17) 36. Qd2 (36. Rxf5 $15 Qxd5 37. Rxd5) 36... Qg6 ({Black should try} 36... Be3 $17 37. Qd1 Bc5) 37. Bxd6 (37. Qd5+ $1 $11 {remains equal.} Be6 38. Qxd6) 37... Re6 $1 38. Ng3 (38. Qd5 $2 Be4 39. Qxc4 b5 $19) 38... Bd3 {A strong pair of Bishops.} (38... Rxd6 $2 39. Rxe8+ Qxe8 40. Qxd6 $18) (38... Rxe1 $17 39. Rxe1 Rxe1+ 40. Qxe1 Qxd6 41. Nxf5 Qd7) 39. Rxe6 $11 Rxe6 40. Rf8+ Kh7 41. Bb4 {aiming for Bc3.} (41. Qc3 $2 Qg7 42. Qxg7+ Kxg7 $19) 41... Bd4 42. Rd8 Qg7 {[#]} (42... Qf6 $11 43. Rf8 Qg7) 43. Qd1 $1 $18 g4 {[#]} 44. Nf5 $3 {[%mdl 512]} Bxf5 $11 45. Rxd4 (45. Qxd4 {simplifies} Qxd4 46. Rxd4 Re2 47. Kg1) 45... Re4 $132 {[%mdl 2048] Black has counterplay} 46. Rd8 (46. Rd5 $11 Qf7 47. Rd8) 46... Qxb2 $15 {[%cal Oa6a5] And now ...a5! would win.} 47. h3 Qe2 (47... gxh3 48. Qh5+ Kg7 49. Qg5+ (49. Qxf5 $2 Qxg2#) 49... Bg6 50. Rd7+ (50. gxh3 Qb1+ 51. Qg1 Re3 $17) (50. gxh3 Qb1+ 51. Qg1 Re3 $17)) ({Better is} 47... Be6 $15 48. Re8 Qe2 49. Qxe2 Rxe2 50. hxg4 Bxg4 51. Rxe2 Bxe2) 48. Qa1 $11 {White wants to mate with Rh8+. The position is equal.} Re8 {Dodges Rh8+} (48... gxh3 {gets mated.} 49. Rh8+ Kg6 50. Rg8+ (50. gxh3 Qf3+ 51. Kg1 Rg4+ 52. hxg4 Qg3+ 53. Kh1 Be4#) 50... Kf7 51. Qg7+ Ke6 52. Qe7+ Kd5 53. Qd6#) 49. Rxe8 Qxe8 {[%mdl 4096] Endgame KQB-KQB} 50. Qf6 {Inhibits gxh3.} Qe6 51. Qh4+ Kg6 {[%cal Rg4h3]} 52. Qg3 Kf7 {[%cal Rg4h3]} 53. h4 Kg6 54. Kh2 Qf6 55. Be1 b5 56. Bb4 Bd7 (56... Kh5 {simplifies} 57. Be1 c3 58. Bxc3 Qxh4+ 59. Qxh4+ Kxh4 60. g3+ Kg5) 57. Bc3 Qe7 58. Bd2 Bf5 59. Bg5 Qe6 60. Qc7 Qd7 61. Qc5 Qe6 62. Bf4 Qf6 63. Kg3 Qc3+ 64. Be3 {[%cal Oh4h5] h5+! would be deadly.} Qe1+ 65. Kf4 Qf1+ 66. Ke5 Qa1+ (66... Qxg2 67. Qd6+ Kg7 68. Kxf5 Qf1+ 69. Bf4 (69. Kxg4 Qe2+ 70. Kf5 Qxe3 $11) 69... Qd3+ 70. Qxd3 cxd3 71. Kxg4 $18) 67. Kf4 (67. Bd4 $5 Qe1+ $8 68. Be3 Qg3+ 69. Bf4 Qc3+ 70. Qd4 Qxd4+ 71. Kxd4 $11) 67... Qf1+ 68. Kg3 Qe1+ 69. Bf2 {The board is on fire.} Qc3+ 70. Kh2 {[%cal Oh4h5] h5+! is the strong threat.} Qf6 71. Be1 c3 {[%mdl 64] Deflection} 72. Bxc3 (72. Qxc3 {simplifies} Qxc3 73. Bxc3 Be6 74. Be1) 72... Qxh4+ 73. Kg1 Qd8 74. Qc6+ Kf7 75. Be5 (75. Qxa6 Qd1+ 76. Kh2 g3+ 77. Kxg3 Qg4+ 78. Kh2 Qf4+ 79. Kh1 Qc1+ 80. Kh2 Qxc3 $15) 75... Qe7 76. Qd5+ Qe6 77. Qb7+ Qe7 78. Qd5+ Qe6 79. Qd4 {[%emt 2:04:15]} Qc4 {[%emt 2:07:31] An exciting game.   Weighted Error Value: White=0.15 (very precise) /Black=0.16 (very precise)} 1/2-1/2